fUST/lending_fUST_20250601
["ID","MTS","AMOUNT","RATE_DAILY","PERIOD"]
[363382057,1748711342620,504.38300175,0.00015,2]
[363382058,1748711353107,-300.0,0.0001526,2]
[363382059,1748711353129,-16766.37160892,0.00015261,2]
[363382060,1748711357839,3992.04199825,0.00015,2]
[363382061,1748711357864,1007.95800175,0.00015,2]
[363382063,1748711373303,-21568.71023574,0.00015261,2]
[363382064,1748711373326,-7026.27,0.000154,2]
[363382065,1748711373348,-1099.26,0.00015414,2]
[363382066,1748711373372,-1099.26,0.00015414,2]
[363382067,1748711373395,-1099.26,0.00015415,2]
[363382068,1748711373416,-1099.26,0.00015415,2]
[363382069,1748711373439,-1099.26,0.00015415,2]
[363382070,1748711373461,-1099.26,0.00015417,2]
[363382071,1748711373486,-638.44173462,0.00015437,2]
[363382072,1748711373511,-507.08900486,0.00015437,2]
[363382073,1748711373538,-507.08900486,0.00015437,2]
[363382074,1748711373561,-507.08900486,0.00015437,2]
[363382075,1748711373584,-507.08900486,0.00015437,2]
[363382076,1748711373609,-507.08900486,0.00015437,2]
[363382077,1748711373633,-507.08900486,0.00015437,2]
[363382078,1748711373661,-507.08900486,0.00015437,2]
[363382079,1748711373687,-507.08900486,0.00015437,2]
[363382080,1748711373714,-507.08900486,0.00015437,2]
[363382081,1748711373739,-507.08900486,0.00015437,2]
[363382082,1748711373764,-507.08900486,0.00015437,2]
[363382083,1748711373790,-507.08900486,0.00015437,2]
[363382084,1748711373815,-507.08900486,0.00015437,2]
[363382085,1748711373839,-507.08900486,0.00015437,2]
[363382086,1748711373862,-507.08900486,0.00015437,2]
[363382087,1748711373888,-507.08900486,0.00015437,2]
[363382088,1748711373911,-507.08900486,0.00015437,2]
[363382089,1748711373936,-539.35830518,0.00015437,2]
[363382090,1748711373962,-539.35830518,0.00015437,2]
[363382091,1748711373986,-539.35830518,0.00015437,2]
[363382092,1748711374011,-539.35830518,0.00015437,2]
[363382093,1748711374034,-539.35830518,0.00015437,2]
[363382094,1748711374058,-539.35830518,0.00015437,2]
[363382095,1748711374082,-539.35830518,0.00015437,2]
[363382096,1748711374105,-539.35830518,0.00015437,2]
[363382097,1748711374130,-539.35830518,0.00015437,2]
[363382098,1748711374155,-539.35830518,0.00015437,2]
[363382099,1748711374179,-611.80749154,0.00015437,2]
[363382100,1748711374202,-17028.56343507,0.00015437,2]
[363382101,1748711374282,3488.46699825,0.00015,2]
[363382102,1748711374310,1511.53300175,0.00015,2]
[363382104,1748711390097,2984.89199825,0.00015,2]
[363382105,1748711390119,2015.10800175,0.00015,2]
[363382106,1748711405319,2481.31699825,0.00015,2]
[363382107,1748711405349,2518.68300175,0.00015,2]
[363382108,1748711421001,1977.74199825,0.00015,2]
[363382109,1748711421024,3022.25800175,0.00015,2]
[363382147,1748711432011,-200.81551702,0.0001516,2]
[363382149,1748711432020,-660.699906,0.00015216,2]
[363382151,1748711432030,-1387.93864285,0.00015437,2]
[363382153,1748711432039,-300.0,0.00015598,2]
[363382155,1748711432049,-300.0,0.00015598,2]
[363382157,1748711432059,-300.0,0.00015598,2]
[363382160,1748711432069,-1200.0,0.00015598,2]
[363382162,1748711432079,-11862.71257115,0.00015599,2]
[363382164,1748711432089,-158.22780161,0.00015599,2]
[363382166,1748711432099,-158.22780161,0.00015599,2]
[363382168,1748711432108,-704.45850907,0.00016,2]
[363382170,1748711432118,-152.51261693,0.000163,2]
[363382171,1748711432128,-973.41274586,0.00016338,2]
[363382172,1748711432137,-1630.52871135,0.000164,2]
[363382174,1748711432146,-1099.26,0.00016437,2]
[363382175,1748711432156,-430.0,0.00016438,2]
[363382176,1748711432166,-402.56902387,0.00016438,2]
[363382177,1748711432176,-430.0,0.00016438,2]
[363382178,1748711432186,-423.22003313,0.00016438,2]
[363382179,1748711432196,-430.0,0.00016438,2]
[363382180,1748711432206,-189.34039913,0.00016438,2]
[363382181,1748711432216,-430.0,0.00016438,2]
[363382182,1748711432226,-370.0,0.00016438,2]
[363382183,1748711432237,-507.63682359,0.00016438,2]
[363382184,1748711432247,-430.0,0.00016438,2]
[363382185,1748711432257,-401.61404697,0.00016438,2]
[363382186,1748711432267,-453.22447969,0.00016438,2]
[363382187,1748711432277,-430.0,0.00016438,2]
[363382188,1748711432287,-440.0,0.00016438,2]
[363382189,1748711432297,-430.0,0.00016438,2]
[363382190,1748711432308,-452.77394375,0.00016438,2]
[363382191,1748711432317,-335.95932143,0.00016438,2]
[363382192,1748711432327,-430.0,0.00016438,2]
[363382193,1748711432337,-430.0,0.00016438,2]
[363382194,1748711432347,-430.0,0.00016438,2]
[363382195,1748711432357,-197.54617617,0.00016438,2]
[363382196,1748711432367,-430.0,0.00016438,2]
[363382197,1748711432377,-430.0,0.00016438,2]
[363382198,1748711432386,-430.0,0.00016438,2]
[363382199,1748711432396,-430.0,0.00016438,2]
[363382200,1748711432406,-400.0,0.00016438,2]
[363382201,1748711432416,-500.0,0.00016438,2]
[363382202,1748711432426,-455.75747863,0.00016438,2]
[363382203,1748711432436,-430.0,0.00016438,2]
[363382204,1748711432446,-430.0,0.00016438,2]
[363382205,1748711432456,-480.0,0.00016438,2]
[363382206,1748711432467,-430.0,0.00016438,2]
[363382207,1748711432477,-430.0,0.00016438,2]
[363382208,1748711432487,-495.98,0.00016438,2]
[363382209,1748711432497,-452.46780618,0.00016438,2]
[363382210,1748711432507,-297.89612576,0.00016438,2]
[363382211,1748711432516,-430.0,0.00016438,2]
[363382212,1748711432527,-430.0,0.00016438,2]
[363382213,1748711432536,-430.0,0.00016438,2]
[363382214,1748711432546,-430.0,0.00016438,2]
[363382215,1748711432556,-430.0,0.00016438,2]
[363382216,1748711432565,-430.0,0.00016438,2]
[363382217,1748711432575,-430.0,0.00016438,2]
[363382218,1748711432724,-430.0,0.00016438,2]
[363382219,1748711432735,-430.0,0.00016438,2]
[363382220,1748711432745,-430.0,0.00016438,2]
[363382221,1748711432755,-430.0,0.00016438,2]
[363382222,1748711432767,-430.0,0.00016438,2]
[363382223,1748711432776,-430.0,0.00016438,2]
[363382224,1748711432786,-430.0,0.00016438,2]
[363382225,1748711432795,-825.12,0.00016438,2]
[363382226,1748711432807,-430.0,0.00016438,2]
[363382227,1748711432817,-430.0,0.00016438,2]
[363382228,1748711432827,-430.0,0.00016438,2]
[363382229,1748711432837,-430.0,0.00016438,2]
[363382230,1748711432848,-430.0,0.00016438,2]
[363382231,1748711432858,-233.04985623,0.00016438,2]
[363382232,1748711432867,-400.88195381,0.00016438,2]
[363382233,1748711432877,-430.0,0.00016438,2]
[363382234,1748711432887,-430.0,0.00016438,2]
[363382235,1748711432896,-430.0,0.00016438,2]
[363382236,1748711432906,-430.0,0.00016438,2]
[363382237,1748711432916,-430.0,0.00016438,2]
[363382238,1748711432925,-430.0,0.00016438,2]
[363382239,1748711432935,-430.0,0.00016438,2]
[363382240,1748711432945,-430.0,0.00016438,2]
[363382241,1748711432956,-430.0,0.00016438,2]
[363382242,1748711432965,-436.08697673,0.00016438,2]
[363382243,1748711432975,-430.0,0.00016438,2]
[363382244,1748711432986,-430.0,0.00016438,2]
[363382245,1748711432996,-450.0,0.00016438,2]
[363382246,1748711433006,-511.64951376,0.00016438,2]
[363382247,1748711433016,-440.20274534,0.00016438,2]
[363382248,1748711433026,-430.0,0.00016438,2]
[363382249,1748711433036,-558.48076791,0.00016438,2]
[363382250,1748711433046,-430.0,0.00016438,2]
[363382251,1748711433056,-380.96987757,0.00016438,2]
[363382252,1748711433067,-430.0,0.00016438,2]
[363382253,1748711433077,-450.0,0.00016438,2]
[363382254,1748711433088,-450.0,0.00016438,2]
[363382255,1748711433098,-430.0,0.00016438,2]
[363382256,1748711433109,-430.0,0.00016438,2]
[363382257,1748711433119,-430.0,0.00016438,2]
[363382258,1748711433129,-430.0,0.00016438,2]
[363382259,1748711433141,-430.0,0.00016438,2]
[363382260,1748711433151,-430.0,0.00016438,2]
[363382261,1748711433160,-232.33200696,0.00016438,2]
[363382262,1748711433170,-430.0,0.00016438,2]
[363382263,1748711433180,-430.0,0.00016438,2]
[363382264,1748711433189,-430.0,0.00016438,2]
[363382265,1748711433199,-449.30003978,0.00016438,2]
[363382266,1748711433209,-431.25416698,0.00016438,2]
[363382267,1748711433218,-430.0,0.00016438,2]
[363382268,1748711433229,-390.0,0.00016438,2]
[363382269,1748711433239,-430.0,0.00016438,2]
[363382270,1748711433248,-420.0,0.00016438,2]
[363382271,1748711433258,-430.0,0.00016438,2]
[363382272,1748711433267,-430.0,0.00016438,2]
[363382273,1748711433277,-430.0,0.00016438,2]
[363382274,1748711433286,-430.0,0.00016438,2]
[363382275,1748711433296,-522.02005557,0.00016438,2]
[363382276,1748711433306,-430.0,0.00016438,2]
[363382277,1748711433316,-430.0,0.00016438,2]
[363382278,1748711433326,-430.0,0.00016438,2]
[363382279,1748711433337,-430.0,0.00016438,2]
[363382280,1748711433346,-430.0,0.00016438,2]
[363382281,1748711433357,-430.0,0.00016438,2]
[363382282,1748711433367,-430.0,0.00016438,2]
[363382283,1748711433377,-430.0,0.00016438,2]
[363382284,1748711433387,-430.0,0.00016438,2]
[363382285,1748711433397,-440.09053989,0.00016438,2]
[363382286,1748711433407,-430.0,0.00016438,2]
[363382287,1748711433417,-430.0,0.00016438,2]
[363382288,1748711433427,-430.0,0.00016438,2]
[363382289,1748711433438,-430.0,0.00016438,2]
[363382290,1748711433448,-430.0,0.00016438,2]
[363382291,1748711433458,-514.22176181,0.00016438,2]
[363382292,1748711433468,-443.64799591,0.00016438,2]
[363382293,1748711433477,-450.0,0.00016438,2]
[363382294,1748711433487,-430.0,0.00016438,2]
[363382295,1748711433498,-503.3260284,0.00016438,2]
[363382296,1748711433507,-430.0,0.00016438,2]
[363382297,1748711433517,-430.0,0.00016438,2]
[363382298,1748711433527,-500.0,0.00016438,2]
[363382299,1748711433536,-500.0,0.00016438,2]
[363382300,1748711433546,-500.0,0.00016438,2]
[363382301,1748711433556,-500.0,0.00016438,2]
[363382302,1748711433566,-500.0,0.00016438,2]
[363382303,1748711433575,-500.0,0.00016438,2]
[363382304,1748711433586,-500.0,0.00016438,2]
[363382305,1748711433595,-589.32,0.00016438,2]
[363382306,1748711433605,-430.0,0.00016438,2]
[363382307,1748711433616,-430.0,0.00016438,2]
[363382308,1748711433625,-500.0,0.00016438,2]
[363382309,1748711433635,-430.0,0.00016438,2]
[363382310,1748711433645,-430.0,0.00016438,2]
[363382311,1748711433655,-430.0,0.00016438,2]
[363382312,1748711433664,-437.78767133,0.00016438,2]
[363382313,1748711433674,-430.0,0.00016438,2]
[363382314,1748711433684,-445.37745601,0.00016438,2]
[363382315,1748711433693,-430.0,0.00016438,2]
[363382316,1748711433703,-276.78067423,0.00016438,2]
[363382317,1748711433713,-430.0,0.00016438,2]
[363382318,1748711433725,-430.0,0.00016438,2]
[363382319,1748711433736,-607.07,0.00016438,2]
[363382320,1748711433747,-430.0,0.00016438,2]
[363382321,1748711433759,-430.0,0.00016438,2]
[363382322,1748711433769,-430.0,0.00016438,2]
[363382323,1748711433778,-430.0,0.00016438,2]
[363382324,1748711433789,-540.0,0.00016438,2]
[363382325,1748711433799,-430.0,0.00016438,2]
[363382326,1748711433809,-574.68059444,0.00016438,2]
[363382327,1748711433819,-441.02540797,0.00016438,2]
[363382328,1748711433830,-430.0,0.00016438,2]
[363382329,1748711433841,-430.0,0.00016438,2]
[363382330,1748711433851,-459.80013698,0.00016438,2]
[363382331,1748711433860,-550.0769539,0.00016438,2]
[363382332,1748711433871,-556.00428834,0.00016438,2]
[363382333,1748711433881,-437.1124755,0.00016438,2]
[363382334,1748711433890,-430.0,0.00016438,2]
[363382335,1748711433900,-412.43154475,0.00016438,2]
[363382336,1748711433910,-450.0,0.00016438,2]
[363382337,1748711433920,-430.0,0.00016438,2]
[363382338,1748711433930,-445.52433474,0.00016438,2]
[363382339,1748711433941,-206.21705771,0.00016438,2]
[363382340,1748711433950,-340.0,0.00016438,2]
[363382341,1748711433960,-501.77666421,0.00016438,2]
[363382342,1748711433970,-430.0,0.00016438,2]
[363382343,1748711433979,-430.0,0.00016438,2]
[363382344,1748711433989,-430.0,0.00016438,2]
[363382345,1748711433998,-562.10826671,0.00016438,2]
[363382346,1748711434007,-430.0,0.00016438,2]
[363382347,1748711434017,-517.37955047,0.00016438,2]
[363382348,1748711434027,-430.0,0.00016438,2]
[363382349,1748711434036,-430.0,0.00016438,2]
[363382350,1748711434044,-430.0,0.00016438,2]
[363382351,1748711434055,-430.0,0.00016438,2]
[363382352,1748711434063,-450.25561317,0.00016438,2]
[363382353,1748711434072,-362.35609535,0.00016438,2]
[363382354,1748711434082,-430.0,0.00016438,2]
[363382355,1748711434091,-430.0,0.00016438,2]
[363382356,1748711434100,-430.0,0.00016438,2]
[363382357,1748711434109,-400.0,0.00016438,2]
[363382358,1748711434119,-432.1844074,0.00016438,2]
[363382359,1748711434128,-426.53720449,0.00016438,2]
[363382360,1748711434143,-430.0,0.00016438,2]
[363382361,1748711434153,-430.0,0.00016438,2]
[363382362,1748711434164,-430.0,0.00016438,2]
[363382363,1748711434174,-430.0,0.00016438,2]
[363382364,1748711434184,-665.76,0.00016438,2]
[363382365,1748711434193,-430.0,0.00016438,2]
[363382366,1748711434203,-430.0,0.00016438,2]
[363382367,1748711434213,-430.0,0.00016438,2]
[363382368,1748711434224,-509.46256607,0.00016438,2]
[363382369,1748711434234,-505.24586559,0.00016438,2]
[363382370,1748711434244,-430.0,0.00016438,2]
[363382371,1748711434255,-430.0,0.00016438,2]
[363382372,1748711434265,-430.0,0.00016438,2]
[363382373,1748711434275,-430.0,0.00016438,2]
[363382374,1748711434285,-430.0,0.00016438,2]
[363382375,1748711434295,-219.52576777,0.00016438,2]
[363382376,1748711434305,-430.0,0.00016438,2]
[363382377,1748711434315,-430.0,0.00016438,2]
[363382378,1748711434325,-430.0,0.00016438,2]
[363382379,1748711434335,-1495.35,0.00016438,2]
[363382380,1748711434345,-430.0,0.00016438,2]
[363382381,1748711434355,-430.0,0.00016438,2]
[363382382,1748711434363,-430.0,0.00016438,2]
[363382383,1748711434371,-1808.07,0.00016438,2]
[363382384,1748711434380,-430.0,0.00016438,2]
[363382385,1748711434389,-500.0,0.00016438,2]
[363382386,1748711434398,-500.0,0.00016438,2]
[363382387,1748711434408,-500.0,0.00016438,2]
[363382388,1748711434417,-430.0,0.00016438,2]
[363382389,1748711434426,-538.0937288,0.00016438,2]
[363382390,1748711434435,-430.0,0.00016438,2]
[363382391,1748711434444,-430.0,0.00016438,2]
[363382392,1748711434453,-430.0,0.00016438,2]
[363382393,1748711434462,-430.0,0.00016438,2]
[363382394,1748711434471,-430.0,0.00016438,2]
[363382395,1748711434479,-631.1825215,0.00016438,2]
[363382396,1748711434495,-17.1474785,0.00016438,2]
[363382397,1748711434505,-430.0,0.00016438,2]
[363382398,1748711434514,-430.0,0.00016438,2]
[363382399,1748711434523,-430.0,0.00016438,2]
[363382400,1748711434532,-430.0,0.00016438,2]
[363382401,1748711434541,-430.0,0.00016438,2]
[363382402,1748711434550,-430.0,0.00016438,2]
[363382403,1748711434559,-430.0,0.00016438,2]
[363382404,1748711434567,-609.11,0.00016438,2]
[363382405,1748711434575,-430.0,0.00016438,2]
[363382406,1748711434584,-1984.25,0.00016438,2]
[363382407,1748711434592,-430.0,0.00016438,2]
[363382408,1748711434602,-430.0,0.00016438,2]
[363382409,1748711434612,-500.0,0.00016438,2]
[363382410,1748711434622,-430.0,0.00016438,2]
[363382411,1748711434631,-583.25,0.00016438,2]
[363382412,1748711434641,-430.0,0.00016438,2]
[363382413,1748711434655,-430.0,0.00016438,2]
[363382414,1748711434664,-430.0,0.00016438,2]
[363382415,1748711434673,-430.0,0.00016438,2]
[363382416,1748711434682,-430.0,0.00016438,2]
[363382417,1748711434692,-430.0,0.00016438,2]
[363382418,1748711434702,-1734.02,0.00016438,2]
[363382419,1748711434712,-430.0,0.00016438,2]
[363382420,1748711434725,-430.0,0.00016438,2]
[363382421,1748711434735,-430.0,0.00016438,2]
[363382422,1748711434745,-2098.4,0.00016438,2]
[363382423,1748711434754,-505.73193461,0.00016438,2]
[363382424,1748711434766,-430.0,0.00016438,2]
[363382425,1748711434775,-220.83138837,0.00016438,2]
[363382426,1748711434789,-430.0,0.00016438,2]
[363382427,1748711434799,-500.0,0.00016438,2]
[363382428,1748711434809,-430.0,0.00016438,2]
[363382429,1748711434819,-500.0,0.00016438,2]
[363382430,1748711434829,-500.0,0.00016438,2]
[363382431,1748711434840,-430.0,0.00016438,2]
[363382432,1748711434849,-500.0,0.00016438,2]
[363382433,1748711434859,-500.0,0.00016438,2]
[363382434,1748711434869,-500.0,0.00016438,2]
[363382435,1748711434879,-500.0,0.00016438,2]
[363382436,1748711434888,-507.47,0.00016438,2]
[363382437,1748711434898,-500.0,0.00016438,2]
[363382438,1748711434908,-430.0,0.00016438,2]
[363382439,1748711434917,-500.0,0.00016438,2]
[363382440,1748711434927,-1048.11,0.00016438,2]
[363382441,1748711434937,-430.0,0.00016438,2]
[363382442,1748711434947,-509.96422887,0.00016438,2]
[363382443,1748711434956,-500.0,0.00016438,2]
[363382444,1748711434966,-400.0,0.00016438,2]
[363382445,1748711434976,-430.0,0.00016438,2]
[363382446,1748711434986,-430.0,0.00016438,2]
[363382447,1748711434996,-430.0,0.00016438,2]
[363382448,1748711435006,-430.0,0.00016438,2]
[363382449,1748711435015,-512.67,0.00016438,2]
[363382450,1748711435026,-430.0,0.00016438,2]
[363382451,1748711435036,-430.0,0.00016438,2]
[363382452,1748711435046,-452.79946169,0.00016438,2]
[363382453,1748711435056,-526.15,0.00016438,2]
[363382454,1748711435066,-430.0,0.00016438,2]
[363382455,1748711435076,-430.0,0.00016438,2]
[363382456,1748711435087,-430.0,0.00016438,2]
[363382457,1748711435097,-430.0,0.00016438,2]
[363382458,1748711435107,-5017.28,0.00016438,2]
[363382459,1748711435116,-400.0,0.00016438,2]
[363382460,1748711435127,-539.81,0.00016438,2]
[363382461,1748711435136,-443.54183881,0.00016438,2]
[363382462,1748711435146,-430.0,0.00016438,2]
[363382463,1748711435156,-430.0,0.00016438,2]
[363382464,1748711435166,-321.45371395,0.00016438,2]
[363382465,1748711435176,-325.127361,0.00016438,2]
[363382466,1748711435186,-443.46448818,0.00016438,2]
[363382467,1748711435195,-224.73162541,0.00016438,2]
[363382468,1748711435206,-430.0,0.00016438,2]
[363382469,1748711435215,-430.0,0.00016438,2]
[363382470,1748711435225,-430.0,0.00016438,2]
[363382471,1748711435235,-407.3406,0.00016438,2]
[363382472,1748711435245,-434.06892811,0.00016438,2]
[363382473,1748711435254,-430.0,0.00016438,2]
[363382474,1748711435264,-500.89424069,0.00016438,2]
[363382475,1748711435274,-430.0,0.00016438,2]
[363382476,1748711435397,-1017.59,0.00016438,2]
[363382477,1748711435408,-745.59,0.00016438,2]
[363382478,1748711435418,-430.0,0.00016438,2]
[363382479,1748711435428,-430.0,0.00016438,2]
[363382480,1748711435438,-430.0,0.00016438,2]
[363382481,1748711435448,-2361.99,0.00016438,2]
[363382482,1748711435457,-441.94390668,0.00016438,2]
[363382483,1748711435467,-430.0,0.00016438,2]
[363382484,1748711435476,-400.0,0.00016438,2]
[363382485,1748711435486,-430.0,0.00016438,2]
[363382486,1748711435497,-430.0,0.00016438,2]
[363382487,1748711435506,-430.0,0.00016438,2]
[363382488,1748711435516,-255.91969351,0.00016438,2]
[363382489,1748711435526,-430.0,0.00016438,2]
[363382490,1748711435535,-438.5400187,0.00016438,2]
[363382491,1748711435545,-430.0,0.00016438,2]
[363382492,1748711435555,-430.0,0.00016438,2]
[363382493,1748711435567,-430.0,0.00016438,2]
[363382494,1748711435579,-430.0,0.00016438,2]
[363382495,1748711435589,-430.0,0.00016438,2]
[363382496,1748711435599,-1807.64,0.00016438,2]
[363382497,1748711435609,-400.0,0.00016438,2]
[363382498,1748711435619,-430.0,0.00016438,2]
[363382499,1748711435629,-430.0,0.00016438,2]
[363382500,1748711435639,-529.17295753,0.00016438,2]
[363382501,1748711435649,-430.0,0.00016438,2]
[363382502,1748711435658,-403.62305558,0.00016438,2]
[363382503,1748711435668,-430.0,0.00016438,2]
[363382504,1748711435677,-430.0,0.00016438,2]
[363382505,1748711435687,-430.0,0.00016438,2]
[363382506,1748711435697,-430.0,0.00016438,2]
[363382507,1748711435706,-430.0,0.00016438,2]
[363382508,1748711435716,-430.0,0.00016438,2]
[363382509,1748711435728,-506.15363087,0.00016438,2]
[363382510,1748711435738,-430.0,0.00016438,2]
[363382511,1748711435747,-430.0,0.00016438,2]
[363382512,1748711435757,-430.0,0.00016438,2]
[363382513,1748711435767,-430.0,0.00016438,2]
[363382514,1748711435777,-430.0,0.00016438,2]
[363382515,1748711435787,-430.0,0.00016438,2]
[363382516,1748711435796,-430.0,0.00016438,2]
[363382517,1748711435808,-430.0,0.00016438,2]
[363382518,1748711435818,-430.0,0.00016438,2]
[363382519,1748711435829,-400.0,0.00016438,2]
[363382520,1748711435838,-402.52947357,0.00016438,2]
[363382521,1748711435848,-430.0,0.00016438,2]
[363382522,1748711435857,-336.54744316,0.00016438,2]
[363382523,1748711435866,-430.0,0.00016438,2]
[363382524,1748711435875,-430.0,0.00016438,2]
[363382525,1748711435884,-408.09044017,0.00016438,2]
[363382526,1748711435894,-430.0,0.00016438,2]
[363382527,1748711435903,-707.05,0.00016438,2]
[363382528,1748711435912,-402.06613217,0.00016438,2]
[363382529,1748711435920,-430.0,0.00016438,2]
[363382530,1748711435930,-430.0,0.00016438,2]
[363382531,1748711435939,-400.0,0.00016438,2]
[363382532,1748711435948,-430.0,0.00016438,2]
[363382533,1748711435958,-430.0,0.00016438,2]
[363382534,1748711435966,-351.89463732,0.00016438,2]
[363382535,1748711435976,-400.44101049,0.00016438,2]
[363382536,1748711435985,-400.0,0.00016438,2]
[363382537,1748711435993,-430.0,0.00016438,2]
[363382538,1748711436002,-554.68,0.00016438,2]
[363382539,1748711436011,-506.08208493,0.00016438,2]
[363382540,1748711436020,-430.0,0.00016438,2]
[363382541,1748711436030,-430.0,0.00016438,2]
[363382542,1748711436040,-400.0,0.00016438,2]
[363382543,1748711436049,-430.0,0.00016438,2]
[363382544,1748711436058,-402.7155122,0.00016438,2]
[363382545,1748711436067,-430.0,0.00016438,2]
[363382546,1748711436076,-430.0,0.00016438,2]
[363382547,1748711436083,-401.94791511,0.00016438,2]
[363382548,1748711436094,-430.0,0.00016438,2]
[363382549,1748711436104,-400.0,0.00016438,2]
[363382550,1748711436113,-430.0,0.00016438,2]
[363382551,1748711436123,-430.0,0.00016438,2]
[363382552,1748711436133,-400.0,0.00016438,2]
[363382553,1748711436142,-430.0,0.00016438,2]
[363382554,1748711436152,-430.0,0.00016438,2]
[363382555,1748711436162,-430.0,0.00016438,2]
[363382556,1748711436171,-765.34,0.00016438,2]
[363382557,1748711436181,-430.0,0.00016438,2]
[363382558,1748711436191,-430.0,0.00016438,2]
[363382559,1748711436201,-430.0,0.00016438,2]
[363382560,1748711436210,-430.0,0.00016438,2]
[363382561,1748711436221,-430.0,0.00016438,2]
[363382562,1748711436231,-430.0,0.00016438,2]
[363382563,1748711436240,-400.0,0.00016438,2]
[363382564,1748711436250,-1861.82,0.00016438,2]
[363382565,1748711436259,-528.04361022,0.00016438,2]
[363382566,1748711436269,-430.0,0.00016438,2]
[363382567,1748711436279,-430.0,0.00016438,2]
[363382568,1748711436289,-1278.09,0.00016438,2]
[363382569,1748711436298,-400.0,0.00016438,2]
[363382570,1748711436307,-430.0,0.00016438,2]
[363382571,1748711436316,-430.0,0.00016438,2]
[363382572,1748711436326,-430.0,0.00016438,2]
[363382573,1748711436336,-514.39836032,0.00016438,2]
[363382574,1748711436345,-430.0,0.00016438,2]
[363382575,1748711436355,-1224.97,0.00016438,2]
[363382576,1748711436364,-430.0,0.00016438,2]
[363382577,1748711436374,-500.0,0.00016438,2]
[363382578,1748711436383,-537.5,0.00016438,2]
[363382579,1748711436393,-507.88493114,0.00016438,2]
[363382580,1748711436403,-430.0,0.00016438,2]
[363382581,1748711436414,-430.0,0.00016438,2]
[363382582,1748711436424,-429.03418222,0.00016438,2]
[363382583,1748711436434,-430.0,0.00016438,2]
[363382584,1748711436444,-430.0,0.00016438,2]
[363382585,1748711436454,-430.0,0.00016438,2]
[363382586,1748711436463,-430.0,0.00016438,2]
[363382587,1748711436473,-430.0,0.00016438,2]
[363382588,1748711436482,-430.0,0.00016438,2]
[363382589,1748711436492,-430.0,0.00016438,2]
[363382590,1748711436501,-430.0,0.00016438,2]
[363382591,1748711436511,-430.0,0.00016438,2]
[363382592,1748711436520,-430.0,0.00016438,2]
[363382593,1748711436529,-401.01239599,0.00016438,2]
[363382594,1748711436539,-402.46978806,0.00016438,2]
[363382595,1748711436549,-430.0,0.00016438,2]
[363382596,1748711436558,-450.32,0.00016438,2]
[363382597,1748711436568,-400.0,0.00016438,2]
[363382598,1748711436579,-430.0,0.00016438,2]
[363382599,1748711436589,-430.0,0.00016438,2]
[363382600,1748711436599,-746.16,0.00016438,2]
[363382601,1748711436610,-430.0,0.00016438,2]
[363382602,1748711436620,-779.61,0.00016438,2]
[363382603,1748711436630,-430.0,0.00016438,2]
[363382604,1748711436640,-430.0,0.00016438,2]
[363382605,1748711436650,-430.0,0.00016438,2]
[363382606,1748711436660,-430.0,0.00016438,2]
[363382607,1748711436670,-510.0,0.00016438,2]
[363382608,1748711436680,-406.69462422,0.00016438,2]